bitfinex-derivatives/quotes_SOLF0:USTF0_20241206
["timestamp","ask_amount","ask_price","bid_price","bid_amount"]
[1733450645997,3.42,243.49,243.31,3.42]
[1733450646195,3.42,243.49,243.32,1.02728702]
[1733450646396,3.42,243.49,243.29,13.99372428]
[1733450646601,3.42,243.49,243.3,1.02730873]
[1733450646801,3.42,243.49,243.31,1.02730873]
[1733450647003,3.42,243.49,243.29,13.99372428]
[1733450647196,5.4722,243.49,243.3,1.0273247]
[1733450647500,3.42,243.49,243.29,16.01779174]
[1733450647701,3.42,243.49,243.33,13.99372428]
[1733450651299,3.8591,243.51,243.37,13.99372428]
[1733450651506,3.42,243.5,243.37,13.99372428]
[1733450652507,3.42,243.5,243.38,1.284]
[1733450652805,3.42,243.5,243.29,2.02406746]
[1733450653005,3.42,243.5,243.3,15.27772428]
[1733450653204,3.42,243.5,243.3,17.29772255]
[1733450653604,5.4722,243.5,243.3,17.29772255]
[1733450653806,3.42,243.5,243.3,17.29772255]
[1733450654401,3.42,243.5,243.34,13.99372428]
[1733450655207,3.42,243.5,243.38,13.99372428]
[1733450659009,3.42,243.5,243.39,2.4752]
[1733450659406,1.3278,243.57,243.39,2.4752]
[1733450659709,3.4,243.52,243.39,2.4752]
[1733450659912,3.4,243.54,243.42,13.99372428]
[1733450660208,3.4,243.54,243.43,1.2383]
[1733450661309,3.4,243.54,243.38,13.99372428]
[1733450661505,3.4,243.54,243.25,1.02709792]
[1733450661506,13.99372428,243.48,243.26,1.02709792]
[1733450661706,1.2933,243.47,243.25,3.7473]
[1733450662008,3.4,243.46,243.25,5.78395201]
[1733450662213,4.6695,243.46,243.25,5.78395201]
[1733450662400,2.0527,243.44,243.25,5.78395201]
[1733450663009,2.0527,243.43,243.25,5.78395201]
[1733450663410,1.2683,243.45,243.25,5.78395201]
[1733450663705,13.99372428,243.44,243.25,5.78395201]
[1733450663911,13.99372428,243.44,243.25,3.7473]
[1733450664107,13.99372428,243.44,243.26,2.03747398]
[1733450664312,3.4,243.43,243.25,3.7473]
[1733450664810,3.4,243.42,243.28,13.99372428]
[1733450665112,3.4,243.41,243.28,13.99372428]
[1733450670708,3.42,243.42,243.32,13.99372428]
[1733450676614,3.36,243.45,243.32,13.99372428]
[1733450676810,2.4801,243.52,243.32,13.99372428]
[1733450677011,3.36,243.51,243.36,13.99372428]
[1733450678210,3.36,243.53,243.44,13.99372428]
[1733450678809,3.36,243.54,243.44,16.04047279]
[1733450681912,42.72,243.6,243.44,16.04047279]
[1733450682216,3.36,243.59,243.48,13.99372428]
[1733450682413,42.72,243.6,243.48,13.99372428]
[1733450682614,13.99372428,243.72,243.52,13.99372428]
[1733450682816,42.72,243.77,243.56,13.99372428]
[1733450683011,3.36,243.76,243.56,13.99372428]
[1733450683213,2.0504,243.7,243.56,13.99372428]
[1733450683616,2.0504,243.7,243.57,2.00759382]
[1733450683816,3.36,243.76,243.57,2.00759382]
[1733450685016,13.99372428,243.74,243.51,13.99372428]
[1733450685418,3.36,243.76,243.55,13.99372428]
[1733450685419,1.0,243.75,243.55,13.99372428]
[1733450685619,1.0,243.75,243.56,1.02647044]
[1733450685913,2.0501,243.73,243.55,13.99372428]
[1733450686119,2.0501,243.73,243.56,1.02636913]
[1733450686314,2.0501,243.73,243.55,13.99372428]
[1733450686315,2.0501,243.73,243.57,1.02636913]
[1733450686516,2.01185653,243.73,243.55,13.99372428]
[1733450686823,13.99372428,243.74,243.55,13.99372428]
[1733450687324,2.0506,243.68,243.55,13.99372428]
[1733450687518,3.36,243.67,243.49,3.8661]
[1733450687721,3.36,243.67,243.5,1.02657158]
[1733450688015,3.9157,243.66,243.49,3.8661]
[1733450688215,3.9157,243.66,243.5,1.02660502]
[1733450688424,3.9157,243.66,243.51,1.02660502]
[1733450688722,3.9157,243.66,243.49,3.8661]
[1733450688924,3.9157,243.66,243.5,1.02663419]
[1733450689226,2.0509,243.65,243.49,3.8661]
[1733450689425,3.9157,243.66,243.5,1.02662546]
[1733450689621,2.051,243.63,243.49,3.8661]
[1733450689826,3.9157,243.66,243.5,1.02662096]
[1733450690020,3.9157,243.66,243.49,3.8661]
[1733450691120,17.90942428,243.66,243.44,16.04047279]
[1733450691316,17.90942428,243.66,243.45,1.02675502]
[1733450691519,17.90942428,243.66,243.46,2.08524569]
[1733450691816,17.90942428,243.66,243.44,13.99372428]
[1733450692017,17.90942428,243.66,243.45,1.02681127]
[1733450692222,17.90942428,243.66,243.44,16.09498505]
[1733450692423,3.9157,243.66,243.45,1.02677345]
[1733450692617,2.0514,243.58,243.44,16.09498505]
[1733450692818,3.36,243.57,243.45,1.02680713]
[1733450693023,3.36,243.57,243.44,16.09498505]
[1733450693623,5.4115,243.57,243.44,16.09498505]
[1733450694323,5.4115,243.57,243.45,1.02681239]
[1733450694626,5.4115,243.57,243.44,16.09498505]
[1733450694825,3.36,243.57,243.44,16.09498505]
[1733450697126,3.9157,243.66,243.44,16.09498505]
[1733450697127,2.0509,243.65,243.48,13.99372428]
[1733450697327,3.9157,243.66,243.48,13.99372428]
[1733450697328,3.36,243.64,243.48,13.99372428]
[1733450697729,5.411,243.64,243.48,13.99372428]
[1733450697929,5.411,243.64,243.48,16.05597396]
[1733450698134,3.36,243.64,243.48,16.05597396]
[1733450698330,2.051,243.63,243.48,16.05597396]
[1733450698831,3.36,243.64,243.48,16.05597396]
[1733450699329,2.0513,243.61,243.48,16.05597396]
[1733450700636,2.0515,243.57,243.44,13.99372428]
[1733450700832,3.36,243.56,243.44,13.99372428]
[1733450703529,1.315,243.66,243.48,13.99372428]
[1733450703733,3.36,243.65,243.52,13.99372428]
[1733450704035,3.36,243.64,243.53,3.8358]
[1733450704241,3.36,243.64,243.56,13.99372428]
[1733450704435,3.36,243.64,243.56,16.08116098]
[1733450706634,3.36,243.64,243.57,1.02622497]
[1733450706836,3.36,243.64,243.56,16.08116098]
[1733450708339,3.36,243.64,243.57,1.02625447]
[1733450708535,3.36,243.64,243.58,1.02625447]
[1733450708837,3.36,243.64,243.56,16.08116098]
[1733450710334,3.36,243.64,243.53,3.8358]
[1733450710942,3.36,243.64,243.53,1.2731]
[1733450711243,3.36,243.64,243.48,13.99372428]
[1733450711737,2.0513,243.6,243.48,13.99372428]
[1733450711936,3.36,243.64,243.48,13.99372428]
[1733450712133,2.0513,243.6,243.44,13.99372428]
[1733450712337,2.0513,243.6,243.45,1.02674638]
[1733450712536,2.0513,243.6,243.46,1.02674638]
[1733450712740,2.0513,243.6,243.47,1.02674638]
[1733450712943,2.0513,243.6,243.44,13.99372428]
[1733450713140,2.0513,243.6,243.45,2.66940649]
[1733450713337,2.0513,243.6,243.46,1.0266948]
[1733450713544,2.051,243.63,243.47,1.0266948]
[1733450713842,3.36,243.64,243.48,15.0203605]
[1733450714034,3.36,243.64,243.49,1.02663622]
[1733450714237,3.36,243.64,243.48,13.99372428]
[1733450714433,3.36,243.63,243.49,1.02660557]
[1733450714638,3.36,243.63,243.37,13.99372428]
[1733450714639,13.99372428,243.6,243.37,13.99372428]
[1733450714839,1.3117,243.59,243.38,2.66973062]
[1733450715038,1.3117,243.59,243.39,2.66973062]
[1733450715338,2.052,243.52,243.4,2.66973062]
[1733450715641,3.36,243.51,243.41,1.02681947]
[1733450715942,3.36,243.51,243.38,2.01523412]
[1733450715943,5.412,243.51,243.38,2.01523412]
[1733450716241,3.36,243.51,243.39,1.02694167]
[1733450716441,3.36,243.51,243.4,1.02694167]
[1733450716635,3.36,243.51,243.33,3.9082]
[1733450716841,3.36,243.51,243.34,4.72447296]
[1733450717038,2.0523,243.48,243.35,2.67029478]
[1733450717237,3.36,243.51,243.36,2.67029478]
[1733450717441,3.36,243.51,243.37,1.02695224]
[1733450717743,3.36,243.51,243.38,1.02695224]
[1733450717944,2.0524,243.47,243.39,1.02695224]
[1733450718147,13.99372428,243.5,243.33,2.5892]
[1733450718445,13.99372428,243.5,243.34,1.02726244]
[1733450718446,2.0529,243.41,243.34,1.02726244]
[1733450718638,3.36,243.4,243.27,13.99372428]
[1733450718843,3.36,243.4,243.28,2.67115455]
[1733450719044,3.36,243.4,243.29,2.67115455]
[1733450719237,3.36,243.4,243.27,13.99372428]
[1733450719238,3.36,243.4,243.3,2.67115455]
[1733450719545,3.36,243.4,243.31,2.67120001]
[1733450719744,3.36,243.4,243.32,1.02736713]
[1733450720044,3.36,243.4,243.33,1.02736713]
[1733450720239,3.36,243.41,243.34,2.67102903]
[1733450720543,3.36,243.41,243.35,15.02109141]
[1733450720738,3.36,243.45,243.36,2.67088067]
[1733450720939,3.36,243.46,243.37,6.51032018]
[1733450721135,3.36,243.48,243.38,2.67072018]
[1733450721346,3.36,243.48,243.39,2.67072018]
[1733450721645,3.36,243.48,243.28,1.2996]
[1733450721835,2.0528,243.42,243.29,2.67126386]
[1733450722040,1.2991,243.47,243.3,2.67126386]
[1733450722240,1.2991,243.47,243.31,1.02740918]
[1733450722440,2.0527,243.43,243.32,1.02740918]
[1733450722645,1.2991,243.47,243.28,1.2996]
[1733450722840,1.2991,243.47,243.29,2.67131738]
[1733450723046,1.2991,243.47,243.3,1.02742976]
[1733450723246,1.2991,243.47,243.31,1.02742976]
[1733450723448,1.2991,243.47,243.28,1.2996]
[1733450723639,1.2991,243.47,243.29,1.02744479]
[1733450723847,1.2991,243.47,243.3,1.02744479]
[1733450724047,2.0529,243.41,243.28,1.2996]
[1733450724349,1.2991,243.47,243.28,1.2996]
[1733450724350,1.2991,243.47,243.29,15.02116521]
[1733450724543,2.0526,243.44,243.29,13.99372428]
[1733450724745,3.36,243.46,243.3,1.02742203]
[1733450724940,3.36,243.46,243.29,13.99372428]
[1733450725545,2.053,243.4,243.29,13.99372428]
[1733450725741,3.36,243.46,243.28,1.2996]
[1733450726144,2.0533,243.36,243.28,1.2996]
[1733450726348,3.36,243.35,243.28,1.2996]
[1733450726549,3.36,243.34,243.28,1.2996]
[1733450727050,3.36,243.34,243.29,6.65]
[1733450728653,2.0535,243.33,243.29,6.65]
[1733450729445,3.36,243.32,243.29,6.65]
[1733450730545,3.36,243.32,243.29,4.6367]
[1733450730851,2.0538,243.3,243.29,4.6367]
[1733450731345,2.5316,243.42,243.21,2.07812294]
[1733450731545,3.36,243.41,243.21,16.082538]
[1733450731750,1.2952,243.42,243.21,16.082538]
[1733450731951,3.36,243.41,243.22,1.02775239]
[1733450732147,3.36,243.41,243.23,1.02775239]
[1733450732344,3.36,243.41,243.25,13.99372428]
[1733450732549,3.36,243.41,243.26,4.87426525]
[1733450732946,2.0529,243.41,243.27,1.02760404]
[1733450733146,56.73372428,243.46,243.29,13.99372428]
[1733450733147,3.36,243.4,243.29,13.99372428]
[1733450733553,3.36,243.4,243.3,1.02745021]
[1733450733853,3.36,243.4,243.29,13.99372428]
[1733450734050,3.36,243.4,243.3,1.02744554]
[1733450734250,44.7925,243.46,243.31,1.02742291]
[1733450734457,44.7925,243.46,243.35,13.99372428]
[1733450734458,3.36,243.45,243.35,13.99372428]
[1733450734852,3.36,243.45,243.36,2.08677448]
[1733450735350,3.36,243.45,243.37,3.7312]
[1733450735554,3.36,243.45,243.37,5.7701042]
[1733450737260,3.36,243.45,243.37,1.2558]
[1733450737457,3.36,243.45,243.31,13.99372428]
[1733450737458,3.36,243.45,243.31,1.2558]
[1733450737752,3.36,243.45,243.32,1.02737841]
[1733450737959,3.36,243.45,243.31,1.2558]
[1733450741458,42.74,243.46,243.31,1.2558]
[1733450741459,3.36,243.44,243.31,1.2558]
[1733450741855,3.36,243.44,243.34,13.99372428]
[1733450742060,3.36,243.44,243.34,15.99828227]
[1733450742256,3.36,243.46,243.38,13.99372428]
[1733450743055,3.36,243.5,243.42,13.99372428]
[1733450743256,3.36,243.5,243.43,3.8587]
[1733450743668,3.52825,243.53,243.46,13.99372428]
[1733450744062,3.36,243.57,243.46,13.99372428]
[1733450744270,3.36,243.58,243.46,13.99372428]
[1733450744468,42.74,243.6,243.46,13.99372428]
[1733450744469,3.36,243.59,243.46,13.99372428]
[1733450744667,3.36,243.6,243.47,1.02659641]
[1733450744967,3.36,243.6,243.46,13.99372428]
[1733450745468,2.0509,243.65,243.5,13.99372428]
[1733450745663,2.0509,243.65,243.5,16.0703836]
[1733450745664,3.36,243.64,243.5,16.0703836]
[1733450747860,3.36,243.64,243.46,13.99372428]
[1733450748169,3.36,243.64,243.48,2.03715317]
[1733450748572,13.99372428,243.63,243.48,2.03715317]
[1733450748872,13.99372428,243.63,243.43,3.8587]
[1733450749067,2.0517,243.56,243.43,3.8587]
[1733450749262,3.36,243.55,243.43,3.8587]
[1733450750367,2.052,243.51,243.43,3.8587]
[1733450751165,17.35372428,243.55,243.34,2.00455799]
[1733450751362,17.35372428,243.55,243.35,2.519]
[1733450751658,17.35372428,243.55,243.35,8.039]
[1733450751863,2.0522,243.49,243.35,8.039]
[1733450752364,17.35372428,243.55,243.35,8.039]
[1733450752567,2.0524,243.47,243.35,8.039]
[1733450752772,3.36,243.46,243.35,8.039]
[1733450754265,3.36,243.46,243.36,1.02727747]
[1733450754471,3.36,243.46,243.35,8.039]
[1733450754770,3.36,243.46,243.36,1.02730801]
[1733450754971,3.36,243.46,243.35,8.039]
[1733450755170,3.36,243.46,243.36,1.02730825]
[1733450755366,3.36,243.55,243.45,13.99372428]
[1733450755570,3.36,243.55,243.46,4.85180039]
[1733450755771,3.36,243.55,243.49,13.99372428]
[1733450755969,3.36,243.55,243.49,16.07363064]
[1733450756568,42.72,243.69,243.5,2.66929968]
[1733450756768,2.0508,243.66,243.51,2.66929968]
[1733450756969,2.0508,243.66,243.52,2.66929968]
[1733450757165,2.0507,243.67,243.53,18.71586848]
[1733450757468,3.36,243.68,243.54,2.66929968]
[1733450757769,3.36,243.68,243.55,4.74607899]
[1733450757970,5.4106,243.68,243.56,1.02670387]
[1733450758164,42.72,243.69,243.57,15.02042815]
[1733450758364,3.36,243.68,243.58,2.23520387]
[1733450758570,3.36,243.68,243.59,1.02670387]
[1733450758763,3.36,243.68,243.6,1.02670387]
[1733450759068,3.36,243.68,243.58,1.2085]
[1733450759268,3.36,243.68,243.59,1.02633887]
[1733450759572,3.36,243.68,243.6,1.02633887]
[1733450759769,3.36,243.68,243.58,1.2085]
[1733450759964,3.36,243.68,243.59,1.02628797]
[1733450760269,3.36,243.68,243.6,1.02628797]
[1733450760470,3.36,243.68,243.58,1.2085]
[1733450760668,3.36,243.68,243.59,2.66828309]
[1733450760870,3.36,243.68,243.6,1.02630053]
[1733450761066,3.36,243.68,243.58,1.2085]
[1733450761270,3.36,243.68,243.59,1.02620727]
[1733450761567,3.36,243.68,243.58,1.2085]
[1733450761768,3.36,243.68,243.59,1.2421]
[1733450762372,2.0503,243.72,243.59,1.2421]
[1733450762670,3.36,243.71,243.59,1.2421]
[1733450763466,13.99372428,243.79,243.59,1.2421]
[1733450763674,2.0499,243.77,243.61,13.99372428]
[1733450764073,3.36,243.78,243.61,13.99372428]
[1733450764375,2.0499,243.76,243.61,13.99372428]
[1733450764972,2.0499,243.76,243.59,1.2421]
[1733450764973,3.36,243.83,243.69,13.99372428]
[1733450765272,3.36,243.83,243.73,13.99372428]
[1733450765475,1.2645,243.91,243.74,2.5732]
[1733450765476,3.36,243.88,243.74,2.5732]
[1733450766774,2.049,243.87,243.74,2.5732]
[1733450767075,3.36,243.88,243.74,2.5732]
[1733450768078,2.049,243.87,243.74,2.5732]
[1733450768379,3.36,243.88,243.74,2.5732]
[1733450768578,1.2645,243.91,243.74,16.56692428]
[1733450768779,3.34,243.87,243.78,13.99372428]
[1733450769877,3.34,243.87,243.74,16.56692428]
[1733450770079,3.34,243.87,243.73,2.08940449]
[1733450770285,2.0491,243.86,243.7,15.32812428]
[1733450770477,3.34,243.87,243.7,17.362245]
[1733450770678,3.34,243.87,243.74,13.99372428]
[1733450773286,3.34,243.87,243.75,1.2996]
[1733450774286,3.34,243.87,243.76,1.02554021]
[1733450774487,3.34,243.87,243.78,13.99372428]
[1733450775395,3.34,243.89,243.79,7.76547933]
[1733450775693,3.34,243.89,243.79,6.74]
[1733450776396,3.34,243.89,243.8,1.02549152]
[1733450776591,3.34,243.89,243.79,6.74]
[1733450776592,3.34,243.89,243.81,1.02549152]
[1733450776896,3.34,243.89,243.82,1.02547663]
[1733450777092,3.34,243.89,243.79,6.74]
[1733450777292,3.34,243.89,243.8,1.02550729]
[1733450777494,3.34,243.89,243.81,1.02550729]
[1733450777692,3.34,243.89,243.79,6.74]
[1733450777995,3.34,243.89,243.8,1.02556586]
[1733450778188,3.34,243.89,243.81,1.02556586]
[1733450778387,5.3888,243.89,243.79,6.74]
[1733450778698,3.34,243.89,243.79,6.74]
[1733450778892,3.34,243.89,243.8,2.66641325]
[1733450779096,3.34,243.89,243.81,2.66641325]
[1733450779397,3.34,243.89,243.82,1.0255699]
[1733450779594,3.34,243.89,243.83,1.0255699]
[1733450779895,1.2991,243.96,243.85,13.99372428]
[1733450780094,3.34,243.96,243.86,2.66607487]
[1733450780290,3.34,243.96,243.87,2.66592427]
[1733450780498,3.34,243.96,243.88,2.66592427]
[1733450780697,3.34,243.96,243.89,1.02549241]
[1733450780894,3.34,243.96,243.86,1.234]
[1733450781093,3.34,243.96,243.87,2.66575705]
[1733450781294,2.0486,243.92,243.79,6.88631056]
[1733450781492,2.0486,243.92,243.8,4.71700751]
[1733450781688,2.0486,243.92,243.79,6.74]
[1733450781689,2.5875,243.95,243.82,13.99372428]
[1733450782297,2.5875,243.95,243.83,4.71678371]
[1733450782492,2.5875,243.95,243.84,6.74101477]
[1733450782693,2.5875,243.95,243.85,1.02538776]
[1733450782899,2.5875,243.95,243.86,1.02538776]
[1733450783196,16.58122428,243.95,243.79,6.74]
[1733450783399,1.2735,243.94,243.8,1.02563365]
[1733450783599,2.0491,243.86,243.81,1.02563365]
[1733450783794,3.34,243.85,243.79,6.74]
[1733450783994,3.34,243.84,243.8,1.02569294]
[1733450784295,1.3332,243.83,243.79,3.74869294]
[1733450784695,3.34,243.82,243.79,3.74869294]
[1733450786090,42.66,243.9,243.79,3.74869294]
[1733450786293,3.34,243.89,243.79,3.74869294]
[1733450786490,42.66,243.9,243.79,3.74869294]
[1733450786690,3.34,243.89,243.79,3.74869294]
[1733450788098,5.3888,243.89,243.79,3.74869294]
[1733450788395,3.34,243.89,243.79,3.74869294]
[1733450789099,2.0492,243.85,243.79,3.74869294]
[1733450789696,2.0491,243.86,243.79,3.74869294]
[1733450790094,3.34,243.89,243.79,3.74869294]
[1733450791998,3.34,243.89,243.69,0.14705366]
[1733450791999,13.99372428,243.87,243.69,0.14705366]
[1733450792200,13.99372428,243.83,243.61,1.3209]
[1733450792397,13.99372428,243.83,243.62,3.69382835]
[1733450792694,2.0502,243.73,243.63,1.64170149]
[1733450792893,2.0502,243.73,243.61,1.3209]
[1733450792894,3.34,243.72,243.64,1.64170149]
[1733450793100,3.34,243.72,243.61,1.3209]
[1733450793300,3.34,243.72,243.62,1.64171146]
[1733450793501,3.34,243.72,243.63,1.64171146]
[1733450793699,3.34,243.72,243.63,5.71171146]
[1733450794399,2.0509,243.65,243.63,5.71171146]
[1733450794696,3.34,243.64,243.63,5.71171146]
[1733450798701,5.3909,243.64,243.63,5.71171146]
[1733450801804,5.3909,243.64,243.63,4.07]
[1733450805706,5.3909,243.64,243.63,3.2242]
[1733450805909,5.3909,243.64,243.63,2.2242]
[1733450806106,5.3909,243.64,243.63,0.2242]
[1733450812707,5.3909,243.64,243.37,3.34]
[1733450812708,17.33372428,243.64,243.43,2.0527]
[1733450813006,42.68,243.7,243.45,13.99372428]
[1733450813007,4.34,243.63,243.45,13.99372428]
[1733450813205,3.34,243.62,243.46,1.2413]
[1733450813606,1.0,243.63,243.46,1.2413]
[1733450813810,3.34,243.62,243.46,3.24831818]
[1733450814110,3.34,243.61,243.51,2.052]
[1733450814309,2.0517,243.56,243.51,2.052]
[1733450814510,3.34,243.55,243.51,2.052]
[1733450814715,3.34,243.55,243.49,13.99372428]
[1733450814911,2.0518,243.54,243.49,16.04582428]
[1733450815316,2.0518,243.54,243.5,2.0521]
[1733450816407,2.0518,243.54,243.49,13.99372428]
[1733450816408,3.34,243.55,243.46,1.2413]
[1733450816611,2.0521,243.51,243.46,3.2937]
[1733450817111,3.34,243.55,243.46,1.2413]
[1733450817507,3.34,243.55,243.4,16.57672428]
[1733450817712,3.34,243.55,243.42,2.0527]
[1733450817713,2.0523,243.47,243.42,2.0527]
[1733450817916,13.99372428,243.62,243.4,16.57672428]
[1733450817917,3.34,243.46,243.4,16.57672428]
[1733450818318,2.0525,243.45,243.41,2.0528]
[1733450818713,2.0525,243.45,243.4,16.57672428]
[1733450818714,3.34,243.46,243.4,16.57672428]
[1733450819019,5.3925,243.46,243.42,2.0528]
[1733450819518,5.3925,243.46,243.4,16.57672428]
[1733450819714,5.3925,243.46,243.41,2.0529]
[1733450819921,3.34,243.46,243.4,16.57672428]
[1733450821220,3.34,243.46,243.43,2.0527]
[1733450821616,4.1019,243.64,243.49,2.0522]
[1733450821814,3.34,243.63,243.44,13.99372428]
[1733450822015,3.34,243.63,243.45,1.2379]
[1733450822411,3.34,243.62,243.45,1.2379]
[1733450822811,2.0515,243.57,243.52,2.0519]
[1733450823012,2.0515,243.57,243.45,1.2379]
[1733450823715,3.34,243.56,243.48,13.99372428]
[1733450823923,2.0514,243.58,243.54,2.0517]
[1733450824117,3.34,243.61,243.52,13.99372428]
[1733450824321,3.34,243.61,243.53,2.5499]
[1733450824615,42.7,243.75,243.53,4.56032666]
[1733450824819,3.34,243.74,243.53,4.56032666]
[1733450825011,42.7,243.75,243.63,2.051]
[1733450825012,2.0505,243.7,243.63,2.051]
[1733450825215,3.34,243.69,243.56,13.99372428]
[1733450825419,3.34,243.68,243.57,1.02621003]
[1733450825613,3.34,243.67,243.58,1.02619027]
[1733450825919,3.34,243.67,243.56,13.99372428]
[1733450826113,3.34,243.67,243.65,2.0508]
[1733450826721,3.34,243.67,243.64,2.0509]
[1733450827815,3.34,243.67,243.65,2.0508]
[1733450828722,3.34,243.68,243.56,13.99372428]
[1733450828922,3.34,243.68,243.57,1.02617157]
[1733450829117,3.34,243.68,243.67,2.0507]
[1733450830125,3.32,243.7,243.69,2.0504]
[1733450831024,3.32,243.73,243.64,13.99372428]
[1733450831227,3.32,243.74,243.65,2.5417]
[1733450831625,3.32,243.74,243.71,2.0503]
[1733450831822,3.32,243.75,243.71,2.0503]
[1733450832023,3.32,243.8,243.72,13.99372428]
[1733450832223,3.32,243.8,243.78,2.0497]
[1733450832720,3.32,243.8,243.72,13.99372428]
[1733450832721,3.32,243.8,243.74,2.05]
[1733450832928,3.32,243.8,243.73,3.38384755]
[1733450833822,2.049,243.87,243.8,2.0496]
[1733450834221,3.32,243.84,243.8,2.0496]
[1733450834919,3.32,243.84,243.83,2.0493]
[1733450836022,3.32,243.87,243.85,2.0491]
[1733450837025,3.32,243.87,243.86,2.0491]
[1733450837223,3.32,243.87,243.77,2.6367]
[1733450838528,3.32,243.87,243.77,1.3227]
[1733450838824,3.32,243.87,243.74,2.05]
[1733450839021,3.32,243.87,243.68,13.99372428]
[1733450839216,3.32,243.87,243.68,16.05032248]
[1733450839424,2.0495,243.82,243.76,2.0499]
[1733450839626,3.32,243.87,243.76,2.0499]
[1733450839823,3.32,243.87,243.68,16.05032248]
[1733450840027,3.32,243.87,243.7,8.72616513]
[1733450840431,3.32,243.87,243.74,8.72616513]
[1733450840620,2.0495,243.81,243.77,2.0498]
[1733450840928,3.32,243.87,243.74,8.72616513]
[1733450841431,3.32,243.87,243.75,2.0499]
[1733450842021,3.32,243.87,243.69,15.29111615]
[1733450842428,2.0501,243.74,243.69,1.3308]
[1733450842635,3.32,243.73,243.69,1.3308]
[1733450842931,3.32,243.73,243.69,3.3812]
[1733450843426,3.32,243.73,243.67,2.0507]
[1733450844330,3.32,243.73,243.65,3.3037]
[1733450844627,3.32,243.73,243.61,13.96031615]
[1733450844628,3.32,243.73,243.57,13.96031615]
[1733450845123,3.32,243.73,243.6,2.0512]
[1733450845322,3.32,243.73,243.54,1.3095]
[1733450845523,1.4952,243.72,243.54,1.3095]
[1733450845726,2.0513,243.6,243.55,2.0517]
[1733450846024,3.32,243.59,243.54,1.3095]
[1733450846436,3.32,243.59,243.55,2.0517]
[1733450846822,5.3714,243.59,243.54,1.3095]
[1733450847227,3.32,243.59,243.48,13.96031615]
[1733450847429,3.32,243.59,243.44,13.96031615]
[1733450847733,3.32,243.59,243.47,2.0523]
[1733450848329,3.32,243.59,243.43,3.7745]
[1733450848536,3.32,243.59,243.43,1.2828]
[1733450848833,3.32,243.59,243.36,13.96031615]
[1733450848834,1.5091,243.58,243.36,13.96031615]
[1733450849335,1.5091,243.58,243.4,2.0529]
[1733450849732,15.46941615,243.58,243.4,2.0529]
[1733450849933,2.0519,243.53,243.4,2.0529]
[1733450850133,3.32,243.52,243.4,2.0529]
[1733450850329,3.32,243.51,243.4,2.0529]
[1733450850530,3.32,243.51,243.32,1.2818]
[1733450850731,3.32,243.51,243.32,15.24211615]
[1733450851331,2.5091,243.58,243.4,13.96031615]
[1733450851636,3.32,243.57,243.33,1.02709492]
[1733450851832,2.052,243.51,243.43,2.0527]
[1733450852033,3.32,243.57,243.4,13.96031615]
[1733450852439,2.052,243.52,243.43,2.0526]
[1733450852631,3.32,243.57,243.4,13.96031615]
[1733450853336,3.32,243.57,243.42,2.0528]
[1733450854336,2.0519,243.53,243.42,2.0528]
[1733450854638,3.32,243.57,243.42,2.0528]
[1733450854839,2.0521,243.51,243.42,2.0528]
[1733450855140,3.32,243.5,243.4,13.96031615]
[1733450855333,2.0517,243.55,243.44,13.96031615]
[1733450855535,3.32,243.52,243.47,2.0524]
[1733450855734,1.2243,243.63,243.45,5.92307849]
[1733450855735,3.32,243.53,243.45,5.92307849]
[1733450855942,3.32,243.54,243.45,5.92307849]
[1733450856243,1.2243,243.63,243.48,13.96031615]